[Event "Titled Tuesday Blitz August 24 2021"]
[White "Janaszak, Dawid"]
[Black "Viani Antonio Dcunha"]
[WhiteFideId "1119206"]
[BlackFideId "5027330"]
[WhiteElo "2332"]
[BlackElo "2366"]
[Result "1-0"]
[Round "07"]
[TimeControl "180+1"]
[Date "2021.08.24"]
[WhiteClock "0:00:04"]
[BlackClock "0:00:02"]

1. e4 {[%clk 0:03:00]}  e5 {[%clk 0:02:55]} 2. Nf3 {[%clk 0:03:00]}  Nc6 {[%clk 0:02:55]} 3. Bb5 {[%clk 0:02:58]}  a6 {[%clk 0:02:55]} 4. Ba4 {[%clk 0:02:57]}  Nf6 {[%clk 0:02:56]} 5. Bxc6 {[%clk 0:02:57]}  dxc6 {[%clk 0:02:52]} 6. d3 {[%clk 0:02:57]}  Bg4 {[%clk 0:02:48]} 7. Nbd2 {[%clk 0:02:53]}  Bd6 {[%clk 0:02:38]} 8. h3 {[%clk 0:02:53]}  Bh5 {[%clk 0:02:36]} 9. g4 {[%clk 0:02:50]}  Bg6 {[%clk 0:02:36]} 10. Nc4 {[%clk 0:02:48]}  Nd7 {[%clk 0:02:28]} 11. Qe2 {[%clk 0:02:40]}  Qe7 {[%clk 0:02:26]} 12. Bd2 {[%clk 0:02:34]}  O-O-O {[%clk 0:02:23]} 13. O-O-O {[%clk 0:02:34]}  Nf8 {[%clk 0:02:14]} 14. Bc3 {[%clk 0:02:25]}  f6 {[%clk 0:02:10]} 15. Ne3 {[%clk 0:02:20]}  Ne6 {[%clk 0:02:08]} 16. Nf5 {[%clk 0:02:20]}  Bxf5 {[%clk 0:02:01]} 17. gxf5 {[%clk 0:02:13]}  Nf4 {[%clk 0:02:01]} 18. Qd2 {[%clk 0:02:01]}  c5 {[%clk 0:01:57]} 19. Kb1 {[%clk 0:01:55]}  g6 {[%clk 0:01:56]} 20. Nh4 {[%clk 0:01:45]}  Rdg8 {[%clk 0:01:49]} 21. Qe3 {[%clk 0:01:42]}  g5 {[%clk 0:01:37]} 22. Nf3 {[%clk 0:01:41]}  h5 {[%clk 0:01:37]} 23. Rdg1 {[%clk 0:01:35]}  b6 {[%clk 0:01:27]} 24. b3 {[%clk 0:01:34]}  Kb7 {[%clk 0:01:27]} 25. a4 {[%clk 0:01:30]}  c6 {[%clk 0:01:21]} 26. Ka2 {[%clk 0:01:22]}  b5 {[%clk 0:01:14]} 27. Qd2 {[%clk 0:01:14]}  Qf7 {[%clk 0:01:07]} 28. Ka1 {[%clk 0:01:12]}  Ka7 {[%clk 0:00:57]} 29. a5 {[%clk 0:01:03]}  Qc7 {[%clk 0:00:51]} 30. Kb1 {[%clk 0:00:30]}  Kb7 {[%clk 0:00:44]} 31. Ne1 {[%clk 0:00:24]}  Qd8 {[%clk 0:00:38]} 32. Ng2 {[%clk 0:00:24]}  Nxg2 {[%clk 0:00:33]} 33. Rxg2 {[%clk 0:00:24]}  b4 {[%clk 0:00:32]} 34. Bb2 {[%clk 0:00:24]}  Qxa5 {[%clk 0:00:31]} 35. h4 {[%clk 0:00:18]}  g4 {[%clk 0:00:25]} 36. f3 {[%clk 0:00:19]}  gxf3 {[%clk 0:00:23]} 37. Rg6 {[%clk 0:00:19]}  Rxg6 {[%clk 0:00:19]} 38. fxg6 {[%clk 0:00:20]}  Rg8 {[%clk 0:00:19]} 39. Rg1 {[%clk 0:00:20]}  Qc7 {[%clk 0:00:18]} 40. Qf2 {[%clk 0:00:18]}  c4 {[%clk 0:00:16]} 41. bxc4 {[%clk 0:00:18]}  Qe7 {[%clk 0:00:17]} 42. Qxf3 {[%clk 0:00:17]}  Bc5 {[%clk 0:00:17]} 43. Rg2 {[%clk 0:00:16]}  Bd4 {[%clk 0:00:14]} 44. Qxh5 {[%clk 0:00:15]}  Bxb2 {[%clk 0:00:13]} 45. Kxb2 {[%clk 0:00:16]}  Kb6 {[%clk 0:00:06]} 46. Qf5 {[%clk 0:00:15]}  c5 {[%clk 0:00:03]} 47. h5 {[%clk 0:00:16]}  Qd6 {[%clk 0:00:04]} 48. h6 {[%clk 0:00:15]}  Qd4+ {[%clk 0:00:03]} 49. Kb1 {[%clk 0:00:15]}  Qe3 {[%clk 0:00:03]} 50. Qf2 {[%clk 0:00:10]}  Qxh6 {[%clk 0:00:03]} 51. Qg1 {[%clk 0:00:08]}  Rg7 {[%clk 0:00:02]} 52. Kb2 {[%clk 0:00:07]}  Qf4 {[%clk 0:00:03]} 53. Rg4 {[%clk 0:00:07]}  Qf3 {[%clk 0:00:03]} 54. Rg3 {[%clk 0:00:07]}  Qf4 {[%clk 0:00:03]} 55. Rg4 {[%clk 0:00:07]}  Qd2 {[%clk 0:00:03]} 56. Rg2 {[%clk 0:00:06]}  Qc3+ {[%clk 0:00:04]} 57. Kb1 {[%clk 0:00:06]}  a5 {[%clk 0:00:05]} 58. Qf1 {[%clk 0:00:05]}  a4 {[%clk 0:00:04]} 59. Qxf6+ {[%clk 0:00:05]}  Ka5 {[%clk 0:00:05]} 60. Qc6 {[%clk 0:00:05]}  Qe1+ {[%clk 0:00:04]} 61. Ka2 {[%clk 0:00:04]}  b3+ {[%clk 0:00:04]} 62. cxb3 {[%clk 0:00:05]}  axb3+ {[%clk 0:00:04]} 63. Kb2 {[%clk 0:00:05]}  Rb7 {[%clk 0:00:02]} 64. Qxb7 {[%clk 0:00:04]} 1-0


[Site "https://www.chess.com"]

[Event "Titled Tuesday Blitz August 24 2021"]
[White "Jin, Ashton"]
[Black "Tsaruk, Maksim"]
[WhiteFideId "30931908"]
[BlackFideId "13511173"]
[WhiteElo "2489"]
[BlackElo "2184"]
[Result "0-1"]
[Round "07"]
[TimeControl "180+1"]
[Date "2021.08.24"]
[WhiteClock "0:01:12"]
[BlackClock "0:01:50"]

1. e4 {[%clk 0:03:00]}  e6 {[%clk 0:02:35]} 2. d4 {[%clk 0:03:00]}  d5 {[%clk 0:02:36]} 3. e5 {[%clk 0:03:01]}  c5 {[%clk 0:02:36]} 4. c3 {[%clk 0:03:01]}  Nc6 {[%clk 0:02:37]} 5. Nf3 {[%clk 0:03:01]}  Qb6 {[%clk 0:02:37]} 6. a3 {[%clk 0:03:01]}  c4 {[%clk 0:02:38]} 7. Nbd2 {[%clk 0:03:01]}  Na5 {[%clk 0:02:38]} 8. Be2 {[%clk 0:03:01]}  Bd7 {[%clk 0:02:39]} 9. O-O {[%clk 0:03:01]}  Ne7 {[%clk 0:02:37]} 10. Rb1 {[%clk 0:02:55]}  Nc8 {[%clk 0:02:35]} 11. Ne1 {[%clk 0:02:40]}  Qc7 {[%clk 0:02:33]} 12. f4 {[%clk 0:02:35]}  Nb6 {[%clk 0:02:31]} 13. Bg4 {[%clk 0:02:15]}  Ba4 {[%clk 0:02:28]} 14. Qf3 {[%clk 0:02:14]}  g6 {[%clk 0:02:28]} 15. Bh3 {[%clk 0:02:09]}  h5 {[%clk 0:02:27]} 16. Kh1 {[%clk 0:02:04]}  O-O-O {[%clk 0:02:27]} 17. Qe2 {[%clk 0:01:57]}  Kb8 {[%clk 0:02:27]} 18. Nef3 {[%clk 0:01:55]}  Bc2 {[%clk 0:02:26]} 19. Ra1 {[%clk 0:01:55]}  Bd3 {[%clk 0:02:27]} 20. Qf2 {[%clk 0:01:52]}  Bxf1 {[%clk 0:02:27]} 21. Nxf1 {[%clk 0:01:51]}  Nb3 {[%clk 0:02:28]} 22. Rb1 {[%clk 0:01:51]}  Nxc1 {[%clk 0:02:24]} 23. Rxc1 {[%clk 0:01:52]}  Qd7 {[%clk 0:02:23]} 24. Ng5 {[%clk 0:01:50]}  Bh6 {[%clk 0:02:23]} 25. Ne3 {[%clk 0:01:49]}  Qe7 {[%clk 0:02:13]} 26. Nf3 {[%clk 0:01:43]}  Bxf4 {[%clk 0:02:13]} 27. Rf1 {[%clk 0:01:40]}  Na4 {[%clk 0:02:08]} 28. g3 {[%clk 0:01:37]}  Bxe3 {[%clk 0:02:08]} 29. Qxe3 {[%clk 0:01:38]}  Nxb2 {[%clk 0:02:09]} 30. Ng5 {[%clk 0:01:37]}  Rhf8 {[%clk 0:02:06]} 31. Nh7 {[%clk 0:01:35]}  Rh8 {[%clk 0:01:56]} 32. Ng5 {[%clk 0:01:35]}  Rdf8 {[%clk 0:01:55]} 33. Rf6 {[%clk 0:01:24]}  h4 {[%clk 0:01:54]} 34. Qf2 {[%clk 0:01:22]}  Nd3 {[%clk 0:01:51]} 35. Qf3 {[%clk 0:01:17]}  hxg3 {[%clk 0:01:51]} 36. hxg3 {[%clk 0:01:17]}  Qxa3 {[%clk 0:01:49]} 37. Nxe6 {[%clk 0:01:14]}  Rxh3+ {[%clk 0:01:47]} 38. Kg2 {[%clk 0:01:14]}  Ne1+ {[%clk 0:01:48]} 39. Kxh3 {[%clk 0:01:13]}  Nxf3 {[%clk 0:01:49]} 40. Nxf8 {[%clk 0:01:13]}  Qxf8 {[%clk 0:01:49]} 41. Rxf3 {[%clk 0:01:12]}  a5 {[%clk 0:01:50]} 0-1


[Site "https://www.chess.com"]

[Event "Titled Tuesday Blitz August 24 2021"]
[White "Khodzhamkuliev, Bahadur"]
[Black "Ibarra Jerez, Jose Carlos"]
[WhiteFideId "24135046"]
[BlackFideId "2226332"]
[WhiteElo "2130"]
[BlackElo "2602"]
[Result "0-1"]
[Round "07"]
[TimeControl "180+1"]
[Date "2021.08.24"]
[WhiteClock "0:00:07"]
[BlackClock "0:00:06"]

1. Nf3 {[%clk 0:03:00]}  d5 {[%clk 0:02:41]} 2. c4 {[%clk 0:02:59]}  d4 {[%clk 0:02:41]} 3. d3 {[%clk 0:02:59]}  Nc6 {[%clk 0:02:40]} 4. g3 {[%clk 0:02:59]}  e5 {[%clk 0:02:38]} 5. Bg2 {[%clk 0:03:00]}  Bb4+ {[%clk 0:02:37]} 6. Bd2 {[%clk 0:03:00]}  a5 {[%clk 0:02:36]} 7. O-O {[%clk 0:03:00]}  Nf6 {[%clk 0:02:34]} 8. Bxb4 {[%clk 0:03:00]}  axb4 {[%clk 0:02:33]} 9. Nbd2 {[%clk 0:03:01]}  O-O {[%clk 0:02:32]} 10. a3 {[%clk 0:03:02]}  bxa3 {[%clk 0:02:30]} 11. Rxa3 {[%clk 0:03:03]}  Rxa3 {[%clk 0:02:29]} 12. bxa3 {[%clk 0:03:04]}  Qe7 {[%clk 0:02:17]} 13. Qb3 {[%clk 0:03:01]}  Nd7 {[%clk 0:02:17]} 14. Ne1 {[%clk 0:02:54]}  Nc5 {[%clk 0:02:15]} 15. Qb5 {[%clk 0:02:54]}  Nd8 {[%clk 0:02:12]} 16. Nb3 {[%clk 0:02:38]}  Nde6 {[%clk 0:02:00]} 17. Nxc5 {[%clk 0:02:30]}  Nxc5 {[%clk 0:01:57]} 18. Nc2 {[%clk 0:02:25]}  Bd7 {[%clk 0:01:56]} 19. Qa5 {[%clk 0:02:20]}  b6 {[%clk 0:01:50]} 20. Qa7 {[%clk 0:02:13]}  Bg4 {[%clk 0:01:48]} 21. f3 {[%clk 0:02:11]}  Bf5 {[%clk 0:01:39]} 22. Nb4 {[%clk 0:02:10]}  Be6 {[%clk 0:01:20]} 23. f4 {[%clk 0:01:54]}  exf4 {[%clk 0:00:57]} 24. gxf4 {[%clk 0:01:40]}  Bg4 {[%clk 0:00:50]} 25. Rf2 {[%clk 0:01:13]}  Qe3 {[%clk 0:00:30]} 26. Qxc7 {[%clk 0:00:56]}  Bxe2 {[%clk 0:00:27]} 27. Nd5 {[%clk 0:00:44]}  Qc1+ {[%clk 0:00:25]} 28. Bf1 {[%clk 0:00:43]}  Bxd3 {[%clk 0:00:20]} 29. Qe7 {[%clk 0:00:13]}  Bxf1 {[%clk 0:00:15]} 30. Rxf1 {[%clk 0:00:13]}  Qxc4 {[%clk 0:00:14]} 31. Qd6 {[%clk 0:00:10]}  Re8 {[%clk 0:00:06]} 32. Rf2 {[%clk 0:00:07]}  Qc1+ {[%clk 0:00:06]} 33. Kg2 {[%clk 0:00:07]}  Qe1 {[%clk 0:00:05]} 34. Rf3 {[%clk 0:00:06]}  Qe2+ {[%clk 0:00:05]} 35. Rf2 {[%clk 0:00:06]}  Qxf2+ {[%clk 0:00:05]} 36. Kxf2 {[%clk 0:00:06]}  Ne4+ {[%clk 0:00:05]} 37. Kf3 {[%clk 0:00:07]}  Nxd6 {[%clk 0:00:06]} 38. Nc7 {[%clk 0:00:07]} 0-1


[Site "https://www.chess.com"]

[Event "Titled Tuesday Blitz August 24 2021"]
[White "Kholin, Aleksandr"]
[Black "Tarigan, Gilbert Elroy"]
[WhiteFideId "14202190"]
[BlackFideId "7108133"]
[WhiteElo "2449"]
[BlackElo "1908"]
[Result "0-1"]
[Round "07"]
[TimeControl "180+1"]
[Date "2021.08.24"]
[WhiteClock "0:00:10"]
[BlackClock "0:01:00"]

1. e4 {[%clk 0:03:00]}  b6 {[%clk 0:02:54]} 2. d4 {[%clk 0:03:00]}  c5 {[%clk 0:02:54]} 3. d5 {[%clk 0:02:58]}  e5 {[%clk 0:02:53]} 4. c4 {[%clk 0:02:56]}  d6 {[%clk 0:02:51]} 5. Bd3 {[%clk 0:02:55]}  Be7 {[%clk 0:02:50]} 6. Nc3 {[%clk 0:02:55]}  Bg5 {[%clk 0:02:48]} 7. Nf3 {[%clk 0:02:50]}  Bxc1 {[%clk 0:02:48]} 8. Rxc1 {[%clk 0:02:51]}  Ne7 {[%clk 0:02:45]} 9. h3 {[%clk 0:02:50]}  O-O {[%clk 0:02:40]} 10. O-O {[%clk 0:02:46]}  h6 {[%clk 0:02:37]} 11. Kh2 {[%clk 0:02:42]}  f5 {[%clk 0:02:28]} 12. exf5 {[%clk 0:02:40]}  Bxf5 {[%clk 0:02:29]} 13. Nh4 {[%clk 0:01:55]}  Bxd3 {[%clk 0:02:22]} 14. Qxd3 {[%clk 0:01:56]}  Nd7 {[%clk 0:02:22]} 15. Ne4 {[%clk 0:01:10]}  Nf6 {[%clk 0:02:21]} 16. Nxf6+ {[%clk 0:01:03]}  Rxf6 {[%clk 0:02:22]} 17. g3 {[%clk 0:00:55]}  Qf8 {[%clk 0:02:14]} 18. Qe2 {[%clk 0:00:45]}  Qf7 {[%clk 0:02:07]} 19. Rce1 {[%clk 0:00:36]}  Rf8 {[%clk 0:01:57]} 20. f4 {[%clk 0:00:32]}  exf4 {[%clk 0:01:55]} 21. Qxe7 {[%clk 0:00:19]}  fxg3+ {[%clk 0:01:51]} 22. Kxg3 {[%clk 0:00:19]}  Rxf1 {[%clk 0:01:42]} 23. Qxf7+ {[%clk 0:00:18]}  R8xf7 {[%clk 0:01:41]} 24. Re8+ {[%clk 0:00:17]}  Kh7 {[%clk 0:01:37]} 25. Re6 {[%clk 0:00:17]}  g5 {[%clk 0:01:15]} 26. Ng2 {[%clk 0:00:14]}  R1f3+ {[%clk 0:01:11]} 27. Kh2 {[%clk 0:00:14]}  R3f6 {[%clk 0:01:10]} 28. Re8 {[%clk 0:00:13]}  Rf2 {[%clk 0:01:10]} 29. Kg3 {[%clk 0:00:12]}  R7f3+ {[%clk 0:01:03]} 30. Kh2 {[%clk 0:00:12]}  Rxb2 {[%clk 0:01:03]} 31. Re7+ {[%clk 0:00:12]}  Kg6 {[%clk 0:01:01]} 32. Re6+ {[%clk 0:00:11]}  Rf6 {[%clk 0:01:02]} 33. Re7 {[%clk 0:00:10]}  Rff2 {[%clk 0:01:01]} 34. Re6+ {[%clk 0:00:09]}  Kh5 {[%clk 0:01:01]} 35. Rxd6 {[%clk 0:00:09]}  Rxg2+ {[%clk 0:01:01]} 36. Kh1 {[%clk 0:00:10]}  Rgc2 {[%clk 0:01:00]} 0-1


[Site "https://www.chess.com"]

[Event "Titled Tuesday Blitz August 24 2021"]
[White "Kobalia, Mikhail"]
[Black "Ulko, Jaroslav"]
[WhiteFideId "4119150"]
[BlackFideId "4116658"]
[WhiteElo "2569"]
[BlackElo "2304"]
[Result "1-0"]
[Round "07"]
[TimeControl "180+1"]
[Date "2021.08.24"]
[WhiteClock "0:00:59"]
[BlackClock "0:00:14"]

1. e4 {[%clk 0:02:55]}  e5 {[%clk 0:02:59]} 2. Nf3 {[%clk 0:02:55]}  d6 {[%clk 0:02:59]} 3. d4 {[%clk 0:02:53]}  exd4 {[%clk 0:02:55]} 4. Qxd4 {[%clk 0:02:53]}  a6 {[%clk 0:02:54]} 5. Bg5 {[%clk 0:02:50]}  Nc6 {[%clk 0:02:52]} 6. Qc3 {[%clk 0:02:44]}  Nf6 {[%clk 0:02:48]} 7. Bxf6 {[%clk 0:02:44]}  Qxf6 {[%clk 0:02:48]} 8. Qxf6 {[%clk 0:02:44]}  gxf6 {[%clk 0:02:49]} 9. Nc3 {[%clk 0:02:44]}  f5 {[%clk 0:02:36]} 10. Nd5 {[%clk 0:02:42]}  Kd8 {[%clk 0:02:36]} 11. Ng5 {[%clk 0:02:39]}  Be6 {[%clk 0:02:34]} 12. Nf4 {[%clk 0:02:39]}  Ke7 {[%clk 0:02:14]} 13. exf5 {[%clk 0:02:37]}  Bxf5 {[%clk 0:02:12]} 14. Nd5+ {[%clk 0:02:28]}  Kd7 {[%clk 0:02:02]} 15. Nxf7 {[%clk 0:02:28]}  Rg8 {[%clk 0:01:54]} 16. h4 {[%clk 0:02:06]}  Bg7 {[%clk 0:01:50]} 17. O-O-O {[%clk 0:02:02]}  h6 {[%clk 0:01:45]} 18. Bc4 {[%clk 0:01:53]}  Na5 {[%clk 0:01:38]} 19. Nxd6 {[%clk 0:01:29]}  cxd6 {[%clk 0:01:22]} 20. Nb6+ {[%clk 0:01:28]}  Kc6 {[%clk 0:01:22]} 21. Bxg8 {[%clk 0:01:26]}  Rxg8 {[%clk 0:01:21]} 22. Nd5 {[%clk 0:01:25]}  Re8 {[%clk 0:01:07]} 23. Nb4+ {[%clk 0:01:24]}  Kd7 {[%clk 0:01:05]} 24. Rhe1 {[%clk 0:01:23]}  Nc4 {[%clk 0:00:27]} 25. c3 {[%clk 0:01:21]}  Rc8 {[%clk 0:00:20]} 26. Nd5 {[%clk 0:01:19]}  Rc5 {[%clk 0:00:19]} 27. Re7+ {[%clk 0:01:17]}  Kc6 {[%clk 0:00:18]} 28. Rc7+ {[%clk 0:01:14]}  Kb5 {[%clk 0:00:18]} 29. Rxb7+ {[%clk 0:01:13]}  Ka4 {[%clk 0:00:14]} 30. Rxg7 {[%clk 0:00:59]} 1-0


[Site "https://www.chess.com"]

[Event "Titled Tuesday Blitz August 24 2021"]
[White "Kovalev, Vladislav"]
[Black "Farahat, Ali"]
[WhiteFideId "13504398"]
[BlackFideId "10600507"]
[WhiteElo "2573"]
[BlackElo "2321"]
[Result "1-0"]
[Round "07"]
[TimeControl "180+1"]
[Date "2021.08.24"]
[WhiteClock "0:00:06"]
[BlackClock "0:00:53"]

1. e4 {[%clk 0:03:00]}  e5 {[%clk 0:02:59]} 2. Nf3 {[%clk 0:03:01]}  Nc6 {[%clk 0:02:59]} 3. Bb5 {[%clk 0:03:01]}  a6 {[%clk 0:02:59]} 4. Ba4 {[%clk 0:03:01]}  Nf6 {[%clk 0:02:59]} 5. O-O {[%clk 0:03:02]}  Be7 {[%clk 0:03:00]} 6. d3 {[%clk 0:03:01]}  b5 {[%clk 0:02:58]} 7. Bb3 {[%clk 0:03:01]}  d6 {[%clk 0:02:58]} 8. a3 {[%clk 0:03:01]}  O-O {[%clk 0:02:58]} 9. Nc3 {[%clk 0:03:01]}  Bg4 {[%clk 0:02:57]} 10. Be3 {[%clk 0:03:00]}  Nd4 {[%clk 0:02:57]} 11. Bxd4 {[%clk 0:03:00]}  exd4 {[%clk 0:02:57]} 12. Nd5 {[%clk 0:03:01]}  Nxd5 {[%clk 0:02:57]} 13. Bxd5 {[%clk 0:03:02]}  Rc8 {[%clk 0:02:56]} 14. h3 {[%clk 0:03:00]}  Bd7 {[%clk 0:02:55]} 15. a4 {[%clk 0:02:24]}  c6 {[%clk 0:02:50]} 16. Bb3 {[%clk 0:02:24]}  c5 {[%clk 0:02:39]} 17. axb5 {[%clk 0:02:24]}  axb5 {[%clk 0:02:40]} 18. Bd5 {[%clk 0:02:21]}  Be6 {[%clk 0:02:37]} 19. Bxe6 {[%clk 0:02:18]}  fxe6 {[%clk 0:02:38]} 20. Ra7 {[%clk 0:02:13]}  Rc7 {[%clk 0:02:36]} 21. Qa1 {[%clk 0:02:09]}  h6 {[%clk 0:02:19]} 22. Qa2 {[%clk 0:01:42]}  Rxa7 {[%clk 0:02:07]} 23. Qxa7 {[%clk 0:01:41]}  Kh7 {[%clk 0:02:06]} 24. Qb7 {[%clk 0:01:33]}  b4 {[%clk 0:01:59]} 25. Ra1 {[%clk 0:01:29]}  Rxf3 {[%clk 0:01:58]} 26. gxf3 {[%clk 0:01:27]}  Bh4 {[%clk 0:01:58]} 27. f4 {[%clk 0:00:53]}  Qf6 {[%clk 0:01:45]} 28. e5 {[%clk 0:00:24]}  Qxf4 {[%clk 0:01:22]} 29. Qe4+ {[%clk 0:00:23]}  Qxe4 {[%clk 0:01:22]} 30. dxe4 {[%clk 0:00:24]}  dxe5 {[%clk 0:01:22]} 31. b3 {[%clk 0:00:18]}  Kg6 {[%clk 0:01:14]} 32. Kg2 {[%clk 0:00:16]}  Kf7 {[%clk 0:01:12]} 33. Ra7+ {[%clk 0:00:16]}  Be7 {[%clk 0:01:12]} 34. Kf3 {[%clk 0:00:16]}  h5 {[%clk 0:01:11]} 35. Ke2 {[%clk 0:00:16]}  g5 {[%clk 0:01:09]} 36. f3 {[%clk 0:00:16]}  Kf6 {[%clk 0:01:02]} 37. Kd3 {[%clk 0:00:14]}  Bf8 {[%clk 0:01:01]} 38. Kc4 {[%clk 0:00:08]}  g4 {[%clk 0:00:58]} 39. hxg4 {[%clk 0:00:09]}  h4 {[%clk 0:00:57]} 40. Rh7 {[%clk 0:00:07]}  Kg5 {[%clk 0:00:57]} 41. Rh5+ {[%clk 0:00:07]}  Kf4 {[%clk 0:00:57]} 42. Rxh4 {[%clk 0:00:08]}  Kxf3 {[%clk 0:00:57]} 43. g5 {[%clk 0:00:06]}  Kg3 {[%clk 0:00:53]} 44. Rh7 {[%clk 0:00:06]} 1-0


[Site "https://www.chess.com"]

[Event "Titled Tuesday Blitz August 24 2021"]
[White "Kuzubov, Yuriy"]
[Black "Papasimakopoulos, Alexandros"]
[WhiteFideId "14112906"]
[BlackFideId "4244125"]
[WhiteElo "2564"]
[BlackElo "2352"]
[Result "1/2-1/2"]
[Round "07"]
[TimeControl "180+1"]
[Date "2021.08.24"]
[WhiteClock "0:00:14"]
[BlackClock "0:00:34"]

1. d4 {[%clk 0:03:00]}  e6 {[%clk 0:02:56]} 2. c4 {[%clk 0:02:59]}  Nf6 {[%clk 0:02:57]} 3. Nf3 {[%clk 0:02:59]}  Bb4+ {[%clk 0:02:57]} 4. Bd2 {[%clk 0:02:59]}  Qe7 {[%clk 0:02:56]} 5. g3 {[%clk 0:02:59]}  Nc6 {[%clk 0:02:57]} 6. Nc3 {[%clk 0:02:58]}  b6 {[%clk 0:02:57]} 7. Bg2 {[%clk 0:02:58]}  Na5 {[%clk 0:02:57]} 8. Nb5 {[%clk 0:02:47]}  Bxd2+ {[%clk 0:02:43]} 9. Nxd2 {[%clk 0:02:45]}  d5 {[%clk 0:02:42]} 10. cxd5 {[%clk 0:02:37]}  exd5 {[%clk 0:02:42]} 11. Rc1 {[%clk 0:02:26]}  c6 {[%clk 0:02:42]} 12. Nc3 {[%clk 0:02:19]}  O-O {[%clk 0:02:42]} 13. O-O {[%clk 0:02:18]}  Nb7 {[%clk 0:02:38]} 14. e4 {[%clk 0:02:13]}  dxe4 {[%clk 0:02:38]} 15. Ndxe4 {[%clk 0:02:13]}  Bd7 {[%clk 0:02:36]} 16. Re1 {[%clk 0:02:12]}  Nxe4 {[%clk 0:02:34]} 17. Nxe4 {[%clk 0:01:49]}  Qd8 {[%clk 0:02:34]} 18. d5 {[%clk 0:01:43]}  Rc8 {[%clk 0:02:24]} 19. b4 {[%clk 0:01:27]}  c5 {[%clk 0:02:17]} 20. bxc5 {[%clk 0:01:25]}  Nxc5 {[%clk 0:02:17]} 21. Nxc5 {[%clk 0:01:19]}  Rxc5 {[%clk 0:02:18]} 22. d6 {[%clk 0:01:14]}  Rxc1 {[%clk 0:02:12]} 23. Qxc1 {[%clk 0:01:14]}  Be6 {[%clk 0:02:12]} 24. Qa3 {[%clk 0:01:13]}  Qd7 {[%clk 0:02:07]} 25. h4 {[%clk 0:01:03]}  Rd8 {[%clk 0:02:02]} 26. Rd1 {[%clk 0:01:03]}  h5 {[%clk 0:01:53]} 27. Qb2 {[%clk 0:01:01]}  Qa4 {[%clk 0:01:48]} 28. Rd2 {[%clk 0:00:59]}  Qc4 {[%clk 0:01:41]} 29. Rd4 {[%clk 0:00:32]}  Qxa2 {[%clk 0:01:31]} 30. Qc3 {[%clk 0:00:31]}  Qb3 {[%clk 0:01:20]} 31. Qc7 {[%clk 0:00:29]}  Rd7 {[%clk 0:01:13]} 32. Qb8+ {[%clk 0:00:28]}  Kh7 {[%clk 0:01:14]} 33. Bc6 {[%clk 0:00:25]}  Qc3 {[%clk 0:01:04]} 34. Bxd7 {[%clk 0:00:25]}  Bxd7 {[%clk 0:00:53]} 35. Qc7 {[%clk 0:00:16]}  Qxd4 {[%clk 0:00:52]} 36. Qxd7 {[%clk 0:00:16]}  Qd1+ {[%clk 0:00:52]} 37. Kh2 {[%clk 0:00:16]}  Qf3 {[%clk 0:00:51]} 38. Kg1 {[%clk 0:00:16]}  Qd1+ {[%clk 0:00:51]} 39. Kg2 {[%clk 0:00:17]}  Qd5+ {[%clk 0:00:51]} 40. f3 {[%clk 0:00:16]}  Qd2+ {[%clk 0:00:43]} 41. Kh3 {[%clk 0:00:17]}  Qd5 {[%clk 0:00:33]} 42. Kg2 {[%clk 0:00:15]}  Qd2+ {[%clk 0:00:33]} 43. Kh3 {[%clk 0:00:15]}  Qd5 {[%clk 0:00:34]} 44. Kg2 {[%clk 0:00:14]} 1/2-1/2


[Site "https://www.chess.com"]

[Event "Titled Tuesday Blitz August 24 2021"]
[White "Maly, Alexey"]
[Black "Aghasiyev, Kamal"]
[WhiteFideId "14103184"]
[BlackFideId "13402854"]
[WhiteElo "2250"]
[BlackElo "2210"]
[Result "0-1"]
[Round "07"]
[TimeControl "180+1"]
[Date "2021.08.24"]
[WhiteClock "0:00:10"]
[BlackClock "0:00:25"]

1. e4 {[%clk 0:03:00]}  e5 {[%clk 0:02:58]} 2. Nf3 {[%clk 0:03:00]}  Nc6 {[%clk 0:02:57]} 3. Bb5 {[%clk 0:03:00]}  a6 {[%clk 0:02:57]} 4. Bxc6 {[%clk 0:03:00]}  dxc6 {[%clk 0:02:57]} 5. O-O {[%clk 0:03:01]}  f6 {[%clk 0:02:56]} 6. d4 {[%clk 0:03:00]}  exd4 {[%clk 0:02:54]} 7. Nxd4 {[%clk 0:03:00]}  c5 {[%clk 0:02:51]} 8. Nb3 {[%clk 0:03:00]}  Qxd1 {[%clk 0:02:49]} 9. Rxd1 {[%clk 0:03:01]}  Bg4 {[%clk 0:02:48]} 10. f3 {[%clk 0:02:58]}  Bd7 {[%clk 0:02:41]} 11. Be3 {[%clk 0:02:56]}  c4 {[%clk 0:02:33]} 12. Na5 {[%clk 0:02:42]}  b5 {[%clk 0:02:24]} 13. a4 {[%clk 0:02:17]}  Bb4 {[%clk 0:02:18]} 14. Bd2 {[%clk 0:02:11]}  Bc5+ {[%clk 0:02:18]} 15. Kf1 {[%clk 0:02:09]}  Bb6 {[%clk 0:02:02]} 16. Na3 {[%clk 0:01:13]}  Nh6 {[%clk 0:01:48]} 17. axb5 {[%clk 0:00:49]}  axb5 {[%clk 0:01:46]} 18. Nb7 {[%clk 0:00:27]}  Bc6 {[%clk 0:01:31]} 19. Nxc4 {[%clk 0:00:21]}  Bxb7 {[%clk 0:01:15]} 20. Nxb6 {[%clk 0:00:20]}  cxb6 {[%clk 0:01:15]} 21. Rxa8+ {[%clk 0:00:20]}  Bxa8 {[%clk 0:01:15]} 22. Ra1 {[%clk 0:00:19]}  Kf7 {[%clk 0:01:06]} 23. Ra6 {[%clk 0:00:17]}  Rc8 {[%clk 0:00:58]} 24. c3 {[%clk 0:00:14]}  Ng8 {[%clk 0:00:51]} 25. Rxb6 {[%clk 0:00:13]}  Bc6 {[%clk 0:00:51]} 26. Ra6 {[%clk 0:00:13]}  Rc7 {[%clk 0:00:46]} 27. Bf4 {[%clk 0:00:12]}  Bb7 {[%clk 0:00:40]} 28. Ra7 {[%clk 0:00:12]}  Rd7 {[%clk 0:00:38]} 29. Ke1 {[%clk 0:00:11]}  Ne7 {[%clk 0:00:36]} 30. Ra5 {[%clk 0:00:11]}  Bc6 {[%clk 0:00:32]} 31. Ra6 {[%clk 0:00:11]}  Rb7 {[%clk 0:00:27]} 32. Bd6 {[%clk 0:00:10]}  Bd7 {[%clk 0:00:26]} 33. Bb4 {[%clk 0:00:09]}  Nc6 {[%clk 0:00:26]} 34. Bc5 {[%clk 0:00:10]}  Ne5 {[%clk 0:00:25]} 35. b3 {[%clk 0:00:10]}  Nd3+ {[%clk 0:00:25]} 0-1


[Site "https://www.chess.com"]